Cogmind - Beta 16.1 @@@ ROGUE MODE // 2026.04.29 @ 15:22:16 Player: Back to the Scrapyard Result: Destroyed by G-34 Mercenary with Small Laser Performance ------------- Evolutions (0) 0 Regions Visited (1) 200 Robots Destroyed (21) 105 Value Destroyed (555) 555 Prototype IDs (0) 0 Alien Tech Used (0) 0 Bonus (0) 0 TOTAL SCORE: 860 Bonus ------- None Cogmind --------- Core Integrity 0/250 Matter 273/300 Energy 250/250 System Corruption 0% Temperature Cool (28) Movement Walking (120) Location -10/Materials Parts ------- > --- POWER (1) -------- Ion Engine > --- PROPULSION (2) --- Aluminum Leg Aluminum Leg > --- UTILITY (2) ------ Improved Heat Sink Small Storage Unit > --- WEAPON (2) ------- Particle Gun Light Assault Rifle > --- INVENTORY (8) ---- Light Treads Light Treads Seismic Detector Small Laser Grenade Launcher Grenade Launcher Grenade Launcher Datajack Peak State ------------ > --- POWER ------------ Light Nuclear Core > --- PROPULSION ------- Aluminum Leg Aluminum Leg > --- UTILITY ---------- Improved Heat Sink Small Storage Unit > --- WEAPON ----------- Particle Gun Light Assault Rifle > --- INVENTORY -------- Ion Engine Light Treads Light Treads Seismic Detector Small Laser Grenade Launcher Grenade Launcher Datajack [Rating: 12] Favorites ----------- Power Light Ion Engine Engine Light Ion Engine Power Core Light Nuclear Core Propulsion Aluminum Leg Leg Aluminum Leg Utility Small Storage Unit Device Improved Heat Sink Storage Small Storage Unit Weapon Particle Gun Energy Gun Particle Gun Ballistic Gun Light Assault Rifle Build | -11 -10 ------- Run | Yrd Mat Slots Evolved . | . . Power . | . . Propulsion . | . . Utility . | . . Weapon . | . . Parts Attached 14 | 7 7 Power 3 | 1 2 Engine 2 | 1 1 Core 1 | . 1 Reactor . | . . Propulsion 4 | 2 2 Treads . | . . Leg 4 | 2 2 Wheel . | . . Hover . | . . Flight . | . . Utility 3 | 2 1 Device 2 | 1 1 Storage 1 | 1 . Processor . | . . Hackware . | . . Protection . | . . Artifact . | . . Weapon 4 | 2 2 Energy Gun 2 | 1 1 Energy Cannon . | . . Ballistic Gun 2 | 1 1 Ballistic Cannon . | . . Launcher . | . . Special Weapon . | . . Impact Weapon . | . . Slashing Weapon . | . . Piercing Weapon . | . . Special Melee Weapon . | . . Unidentified Prototypes . | . . Parts Lost 4 | . 4 Power 2 | . 2 Propulsion . | . . Utility 1 | . 1 Weapon 1 | . 1 Highest Loss Streak 2 | . 2 To Critical Strikes 1 | . 1 Average Backups 7 | 3 7 Power . | 1 . Propulsion 1 | 1 2 Utility . | . 1 Weapon 2 | . 3 Tool/Special . | . . Unused Backups 8 | . 8 Power . | . . Propulsion 2 | . 2 Utility 1 | . 1 Weapon 4 | . 4 Tool/Special 1 | . 1 Average Slot Usage (%) 93 | . 93 Engine 7 | . 7 Core 2 | . 2 Leg 28 | . 28 Device 12 | . 12 Storage 14 | . 14 Energy Gun 14 | . 14 Ballistic Gun 13 | . 13 Peak Build Rating 12 | 7 12 Average Rating 8 | 4 8 On Entrance 3 | . 7 Avg Prop Armor Cover (%) . | . . Naked Turns . | . . Heaviest Build 16 | 13 16 Greatest Support 20 | 20 20 Greatest Overweight (x) . | . . Average Overweight (x) . | . . Largest Inventory Capacity 8 | 8 8 Average Capacity 7 | 6 8 Most Carried 8 | 6 8 Average Carried 7 | 3 7 Final Capacity 8 | 8 8 Final Carried 8 | 5 8 Class Distribution -------------------- 55% | Scavenger-Mutant 44% | Mutant Dominant Class ---------------- Scavenger-Mutant | -10/Materials Resources | -11 -10 ----------- Run | Yrd Mat Matter Collected 409 | 175 234 Remotely . | . . Salvage Created 667 | 36 631 Parts 45 | 8 37 Haulers Intercepted . | . . Recyclers Shooed . | . . Parts Field Recycled . | . . Retrieved Matter . | . . Parts Self-Destructed . | . . Prevented . | . . Parts Restored . | . . Kills | -11 -10 ------- Run | Yrd Mat Combat Hostiles Destroyed 15 | . 15 Guns 15 | . 15 Classes Destroyed 6 | 1 5 Builder 1 | . 1 Tunneler 2 | 2 . Operator 2 | . 2 Watcher 1 | . 1 Swarmer 2 | . 2 Grunt 13 | . 13 Best Kill Streak 6 | 2 6 Combat Bots Only 6 | . 6 Max Kills in Single Turn 1 | 1 1 Gunslinging . | . . Exploded . | . . Melee . | . . Uniques/NPCs Destroyed . | . . Combat | -11 -10 -------- Run | Yrd Mat Hostile Shots Fired 94 | . 94 Missed 27 | . 27 Hits 67 | . 67 Projectile 67 | . 67 Critical Strikes 1 | . 1 Damage Taken 880 | . 880 Core 255 | . 255 Absorbed by Shields . | . . Core Remaining (%) 100 | 100 . Volleys Fired 71 | 2 69 Largest 2 | 2 2 Hottest 85 | 70 85 Shots Fired 139 | 4 135 Gun 139 | 4 135 Cannon . | . . Launcher . | . . Special . | . . Kinetic 70 | 2 68 Thermal 69 | 2 67 Explosive . | . . Electromagnetic . | . . Robot Hit Streak 7 | 3 7 Robot Miss Streak 4 | . 4 Penetration Max . | . . Secondary Targets 2 | . 2 Max Gunslinging Chain 1 | . 1 Shots Hit Robots 83 | 3 80 Core Hits 37 | 2 35 Critical Kills . | . . Critical Parts Destroyed . | . . Critical Strikes . | . . Melee Attacks . | . . Impact . | . . Slashing . | . . Piercing . | . . Sneak Attacks . | . . Combat Hostiles . | . . Follow-up Attacks . | . . Damage Inflicted 1039 | 36 1003 Guns 1023 | 36 987 Cannons . | . . Explosions . | . . Melee . | . . Ramming 16 | . 16 Kinetic 446 | 11 435 Thermal 577 | 25 552 Explosive . | . . Electromagnetic . | . . Impact . | . . Slashing . | . . Piercing . | . . Highest Corruption . | . . Average Corruption . | . . Corruption Purged . | . . Corruption Blocked . | . . Overload Shots . | . . Overflow Damage . | . . Projectiles . | . . Explosions . | . . Melee . | . . Knockbacks . | . . Impact . | . . Kinetic . | . . Secondary . | . . Self-Inflicted Damage . | . . Shots . | . . Rammed . | . . Targets Rammed 5 | . 5 Kicked 5 | . 5 Crushed . | . . Highest Temperature 207 | 18 207 Average Temperature 35 | 10 36 Received Heat Transfer 381 | . 381 Siege Activations . | . . Martial Activations . | . . Shielding Activations . | . . Robots Disrupted . | . . Combat Hostiles . | . . Robots Corrupted . | . . Combat Hostiles . | . . Parts Fried . | . . Impact Corruptions . | . . Robots Melted . | . . Combat Hostiles . | . . Parts Melted . | . . Heat Transferred 1480 | 74 1406 Parts Sabotaged . | . . Parts Stolen . | . . Parts Stripped . | . . Power Chain Reactions . | . . Alert | -11 -10 ------- Run | Yrd Mat Maximum Alert Level . | . . Low Security (%) 100 | 100 100 Level 1 . | . . Level 2 . | . . Level 3 . | . . Level 4 . | . . Level 5 . | . . High Security . | . . Max Security . | . . Peak Influence 140 | 5 140 Initial . | . . Average 59 | . 65 Influence Increases 409 | 10 399 Destroy 0b10 Robot/C 300 | . 300 Destroy 0b10 Robot/NC 30 | 10 20 Destroy Leader 72 | . 72 Successful Hack 6 | . 6 Destroy Structure 1 | . 1 Influence Decreases 314 | 10 304 Time Decay 284 | 10 274 Lost Part 30 | . 30 Squads Dispatched 4 | . 4 Investigation 1 | . 1 Extermination . | . . Reinforcement 3 | . 3 Assault . | . . Garrison . | . . Intercept . | . . Searches Triggered . | . . Construction Impeded . | . . Haulers Reinforced . | . . Active Scanning Responses . | . . Cargo Convoy Interrupts . | . . Stealth | -11 -10 --------- Run | Yrd Mat Distress Signals 2 | . 2 Communications Jammed . | . . Distress Signals . | . . Times Spotted 25 | . 25 Peak Tracking Total 5 | . 5 Tactical Retreats . | . . Traps | -11 -10 ------- Run | Yrd Mat Traps Triggered 1 | . 1 Indirectly . | . . Trap Hack Attempts . | . . Triggered . | . . Disarmed . | . . Reprogrammed . | . . Reused . | . . Traps Extracted . | . . Installed . | . . Triggered . | . . Machines | -11 -10 ---------- Run | Yrd Mat Machines Disabled . | . . Max in Single Turn . | . . Machines Repaired . | . . Machines Dismantled . | . . Machines Sabotaged . | . . Overloaded Fab Kills . | . . Hacking | -11 -10 --------- Run | Yrd Mat Machines Accessed 3 | . 3 Terminals 3 | . 3 Fabricators . | . . Repair Stations . | . . Recycling Units . | . . Scanalyzers . | . . Garrison Access . | . . Total Hacks 9 | . 9 Successful 1 | . 1 Failed 8 | . 8 Catastrophic 2 | . 2 Database Lockouts . | . . Manual 9 | . 9 Terminals 9 | . 9 Fabricators . | . . Repair Stations . | . . Recycling Units . | . . Scanalyzers . | . . Garrison Access . | . . Terminal Hacks . | . . Fabricator Hacks . | . . Repair Station Hacks . | . . Recycling Unit Hacks . | . . Scanalyzer . | . . Garrison Access Hacks . | . . Unauthorized Hacks 1 | . 1 Terminals 1 | . 1 Operators 1 | . 1 Fabricators . | . . Repair Stations . | . . Recycling Units . | . . Scanalyzers . | . . Garrison Access . | . . Data Cores Recovered . | . . Used . | . . Hacking Detections 3 | . 3 Full Trace Events 2 | . 2 Feedback Events . | . . Feedback Blocked . | . . Robot Schematics Acquired . | . . Robots Built . | . . Authchips . | . . Time . | . . Total Robot Build Rating . | . . Part Schematics Acquired . | . . Parts Built . | . . Authchips . | . . Time . | . . Total Part Build Rating . | . . Part Studies Acquired . | . . Parts Repaired . | . . Time . | . . Parts Recycled . | . . Recycled Matter . | . . Retrieved Matter . | . . Retrieved Components . | . . Parts Scanalyzed . | . . Part Schematics Acquired . | . . Parts Damaged . | . . Bothacking | -11 -10 ------------ Run | Yrd Mat Used RIF Installer . | . . Robots Hacked . | . . Non-combat . | . . Combat . | . . Robot Hacks Applied . | . . Relay Couplers Released . | . . Fabnet Peak Effective % . | . . Robots Rewired . | . . Allies Hacked . | . . Hacks Repelled . | . . Allies | -11 -10 -------- Run | Yrd Mat Total Allies . | . . Largest Group . | . . Highest-Rated Group . | . . Highest-Rated Ally . | . . Total Orders . | . . Ally Attacks . | . . Total Damage . | . . Kills . | . . Allies Corrupted . | . . Allies Melted . | . . Intel | -11 -10 ------- Run | Yrd Mat Active Infowar (turns) 267 | 2 265 Seismic 267 | 2 265 Robot Analysis Total . | . . Derelict Logs Recovered . | . . Drone Launches . | . . Drone Recoveries . | . . Exploration | -11 -10 ------------- Run | Yrd Mat Turns Passed 788 | 71 717 Spaces Moved 454 | 49 405 Core 16 | 16 . Treads . | . . Legs 438 | 33 405 Wheels . | . . Hover . | . . Flight . | . . Fastest Speed 50 | 50 120 Average Speed 117 | 97 120 Slowest Speed 120 | 120 120 Overloaded Moves . | . . Propulsion Burnouts . | . . Robots Hopped . | . . Potential Cave-ins . | . . Cave-ins Triggered . | . . Exploration Rate (%) 42 | 3 82 Regions Visited 1 Branch Regions . Pre-discovered Areas . | . . Known Exits Taken . | . . Unknown Exits Taken 1 | 1 . Scrap Searched . | . . Spaces Dug . | . . Terrain Destroyed . | . . Melee . | . . Projectile . | . . AOE . | . . Terrain Rammed . | . . Walls Destroyed . | . . Machines Disabled . | . . Actions | -11 -10 --------- Run | Yrd Mat Total 577 | 67 510 Wait 16 | . 16 Move 453 | 48 405 Hop . | . . Pick Up 15 | 10 5 Fast Attach 4 | 2 2 Attach 7 | 5 2 Detach . | . . Swap 3 | . 3 Drop 3 | . 3 Fire 71 | 2 69 Melee . | . . Ram . | . . Kick 5 | . 5 Crush . | . . Escape Stasis . | . . Rewire . | . . Trap . | . . Miscellaneous . | . . Route ------- -11/Scrapyard -10/Materials (discovered 5 exits: [*Mat x3] / [*Min x2]) History --------- Turn | Location | Event 2 | -11/Scrapyard | Discovered new exit (range 16) 72 | -11/Scrapyard | Entered Materials 171 | -10/Materials | Discovered new exit (range 14) 259 | -10/Materials | Discovered new exit (range 9) 280 | -10/Materials | Core integrity fell below 50% 300 | -10/Materials | Build established: Mutant 410 | -10/Materials | Discovered new exit (range 16) 476 | -10/Materials | Core integrity fell below 20% 516 | -10/Materials | Discovered new exit (range 15) 533 | -10/Materials | Discovered new exit (range 14) 660 | -10/Materials | Build established: Scavenger-Mutant 672 | -10/Materials | Derelicts attacked the area 789 | -10/Materials | Destroyed by G-34 Mercenary with Small Laser Last Messages --------------- 00618_ K-01 Serf collects debris. 00624_ Acquired 5 matter. 00626_ K-01 Serf collects debris. 00629_ R-06 Scavenger collects Wheel. 00631_ K-01 Serf collects debris. 00634_ R-06 Scavenger collects Terrain Scan Processor. 00639_ K-01 Serf cleans the Terminal. 00657_ G-34 Mercenary destroyed. 00659_ K-01 Serf collects debris. 00669_ Acquired Grenade Launcher. 00672_ ALERT: Derelict incursion detected, rerouting patrols to target area. 00676_ Kicked T-07 Excavator out of the way. 00685_ R-06 Scavenger collects Heat Sink. 00689_ R-06 Scavenger collects Aluminum Leg. 00741_ Connecting with Terminal... 00741_ ALERT: Suspicious activity at Terminal M006. Dispatching Investigation squad. 00773_ G-34 Mercenary destroyed. Map ----- +----------------------------------------------------+ | | | | | | | | | | | | | | | | | | | | | | | | | | | | | | | ????????????#########??######## | | ########????# #??# | | # ! ???# #??# """ | | # " #??# #??? """ | | # T #??# #????? """ | | # " #??# #??????? | | # #??####+#############+ | | # ! """ #??# | | # """ #??# < %%* = | | # [ """ #??# ! % | | # =@ #??####/######+####### | | ??###g######## #? ?????# | | ???# % / + #? ?????# | | ???# # #""" ?? ????# | | ???# # """ #"R ?? ????# | | ???# + """ #""" # ???# | | ???# # """ # # ???# | | ???# # ###############??# | | ???# # ! #????????????????# | | ???# # #????????????????# | | ???# # #????????????????# | | ???# # " " #????????????????# | | ???# # "T" #????????????????# | | ???# # """ #????????????????# | | ???# #######????????????????# | | ???# #############??????????? | | ???# ?????????? | | ???# ?????????? | | ???# ?????????? | | ???# ###+#########??????????? | | ???# #??????????????????????? | | ???# #??????????????????????? | | ???# #??????????????????????? | | ???# #??????????????????????? | | ???# #??????????????????????? | +----------------------------------------------------+ Best States ------------- Heat Dissipation 39 Energy Generation 14 Energy Capacity 250 Matter Stores 300 Matter Capacity 300 Sight Range 16 Terrain Scan Density 10 Evasion (%) 55 Item Schematics ----------------- None Robot Schematics ------------------ None Fabricated ------------ Nothing Repaired ---------- Nothing Studied --------- None Alien Tech Used ----------------- None Achievements -------------- None Challenges ------------ None Game ------ Seed ShadingAblativeSabre Manual? 0 Play Time 00:09:32 Cumulative 244.3 hours Start 2026.04.29 @ 15:15:05 End 2026.04.29 @ 15:22:16 Sessions 1 Manual Loads 0 Difficulty Rogue Special Mode None Game No. 337 Rogue 319 Adventurer 18 Explorer 0 Win Type - Total 1 Types 1/0/0/0/0/0/0/0/0/0 Lore% 35 Gallery% 48 Achievement% 35 Wizard Run 0 Options --------- Layout 1 ASCII 0 Keyboard 0 Movement Mouse Keybinds 0 Fullscreen 1 Font 24/Smallcaps Map View 50x40 Zoom Use 0% Tactical HUD 1 Map Filters NONE Filters NONE Steam 1 RUN: e62174ad-0f1e-40be-bb58-c0a806653c5a